[Event "Paul Kerese Mälestusfestival 2022 Välkturniir"]
[Site "Paul Kerese Mälestusfestival 2022 Kiirturniir"]
[Date "????.??.??"]
[Round "9.4"]
[White "Golubovskis, Maksims"]
[Black "Valdats, Reinis"]
[Result "1-0"]
[TimeControl "3 min + 2 sek iga käigu eest"]
[WhiteElo "2163"]
[BlackElo "1427"]

1. e4 {[%clk 00:03:04]} {[%emt 00:00:20]} c5 {[%clk 00:03:04]} {[%emt
00:00:01]} 2. Nf3 {[%clk 00:03:05]} {[%emt 00:00:02]} e6 {[%clk 00:03:05]} 3.
d4 {[%clk 00:03:06]} cxd4 {[%clk 00:03:06]} 4. Nxd4 {[%clk 00:03:07]} Nc6
{[%clk 00:03:07]} {[%emt 00:00:01]} 5. Nc3 {[%clk 00:03:09]} Qc7 {[%clk
00:03:08]} 6. Be3 {[%clk 00:03:09]} {[%emt 00:00:01]} a6 {[%clk 00:03:10]}
{[%emt 00:00:01]} 7. Be2 {[%clk 00:03:04]} {[%emt 00:00:07]} Nf6 {[%clk
00:03:10]} {[%emt 00:00:01]} 8. O-O {[%clk 00:03:01]} {[%emt 00:00:04]} Bb4
{[%clk 00:03:11]} {[%emt 00:00:01]} 9. Na4 {[%clk 00:02:58]} {[%emt 00:00:05]}
b5 {[%clk 00:02:42]} {[%emt 00:00:30]} 10. Nb6 {[%clk 00:02:50]} {[%emt
00:00:10]} Rb8 {[%clk 00:02:12]} {[%emt 00:00:31]} 11. Nxc8 {[%clk 00:02:46]}
{[%emt 00:00:07]} Rxc8 {[%clk 00:02:11]} {[%emt 00:00:03]} 12. c3 {[%clk
00:02:02]} {[%emt 00:00:47]} Be7 {[%clk 00:02:12]} {[%emt 00:00:01]} 13. Nxc6
{[%clk 00:01:55]} {[%emt 00:00:09]} Qxc6 {[%clk 00:02:00]} {[%emt 00:00:13]} 14.
Bf3 {[%clk 00:01:56]} Nxe4 {[%clk 00:01:31]} {[%emt 00:00:32]} 15. Qd4 {[%clk
00:01:55]} {[%emt 00:00:03]} d5 {[%clk 00:01:22]} {[%emt 00:00:11]} 16. Bxe4
{[%clk 00:01:53]} {[%emt 00:00:05]} Bf6 {[%clk 00:01:08]} {[%emt 00:00:17]} 17.
Bxd5 {[%clk 00:01:48]} {[%emt 00:00:06]} Bxd4 {[%clk 00:01:08]} {[%emt
00:00:01]} 18. Bxc6+ {[%clk 00:01:48]} {[%emt 00:00:02]} Rxc6 {[%clk 00:01:06]}
{[%emt 00:00:04]} 19. Bxd4 {[%clk 00:01:49]} {[%emt 00:00:01]} O-O {[%clk
00:01:05]} {[%emt 00:00:02]} 20. a4 {[%clk 00:01:51]} Rb8 {[%clk 00:01:04]}
{[%emt 00:00:04]} 21. axb5 {[%clk 00:01:51]} {[%emt 00:00:02]} Rxb5 {[%clk
00:01:03]} {[%emt 00:00:02]} 22. Ra2 {[%clk 00:01:49]} {[%emt 00:00:04]} h6
{[%clk 00:01:01]} {[%emt 00:00:03]} 23. Rfa1 {[%clk 00:01:50]} {[%emt
00:00:02]} Rc8 {[%clk 00:00:59]} {[%emt 00:00:04]} 24. g3 {[%clk 00:01:44]}
{[%emt 00:00:08]} Rcb8 {[%clk 00:00:57]} {[%emt 00:00:03]} 25. b4 {[%clk
00:01:46]} {[%emt 00:00:02]} e5 {[%clk 00:00:55]} {[%emt 00:00:03]} 26. Bc5
{[%clk 00:01:47]} Rd8 {[%clk 00:00:51]} {[%emt 00:00:07]} 27. Rxa6 {[%clk
00:01:45]} {[%emt 00:00:05]} Rd3 {[%clk 00:00:50]} {[%emt 00:00:02]} 28. Rb6
{[%clk 00:01:44]} {[%emt 00:00:03]} Rxb6 {[%emt 00:00:04]} 29. Bxb6 {[%clk
00:01:45]} {[%emt 00:00:01]} Rxc3 {[%clk 00:00:49]} 30. Bc5 {[%clk 00:01:47]}
{[%emt 00:00:01]} Rb3 {[%clk 00:00:44]} {[%emt 00:00:06]} 31. Ra7 {[%clk
00:01:41]} {[%emt 00:00:08]} e4 {[%clk 00:00:40]} {[%emt 00:00:06]} 32. Re7
{[%clk 00:01:39]} {[%emt 00:00:03]} f5 {[%clk 00:00:40]} {[%emt 00:00:04]} 33.
g4 {[%clk 00:01:40]} f4 {[%clk 00:00:22]} {[%emt 00:00:19]} 34. Rxe4 {[%clk
00:01:37]} {[%emt 00:00:05]} f3 {[%clk 00:00:23]} 35. h4 {[%clk 00:01:35]}
{[%emt 00:00:04]} Rb1+ {[%clk 00:00:18]} {[%emt 00:00:07]} 36. Kh2 {[%clk
00:01:36]} Kh7 {[%clk 00:00:16]} {[%emt 00:00:04]} 37. Kg3 {[%clk 00:01:38]}
{[%emt 00:00:01]} Rb3 {[%clk 00:00:17]} {[%emt 00:00:01]} 38. Re3 {[%clk
00:01:37]} {[%emt 00:00:02]} Rb1 {[%clk 00:00:15]} {[%emt 00:00:05]} 39. Rxf3
{[%clk 00:01:36]} {[%emt 00:00:02]} Kg6 {[%clk 00:00:16]} {[%emt 00:00:01]} 40.
h5+ Kh7 41. Rf7 {[%clk 00:01:33]} {[%emt 00:00:04]} Kg8 {[%clk 00:00:13]}
{[%emt 00:00:05]} 42. Rb7 {[%clk 00:01:34]} {[%emt 00:00:01]} 1-0

[Event "Paul Kerese Mälestusfestival 2022 Välkturniir"]
[Site "Paul Kerese Mälestusfestival 2022 Kiirturniir"]
[Date "????.??.??"]
[Round "9.5"]
[White "Rezniks, Roberts"]
[Black "Olde, Margareth"]
[Result "0-1"]
[TimeControl "3 min + 2 sek iga käigu eest"]
[BlackTitle "WIM"]
[WhiteElo "1433"]
[BlackElo "1971"]

1. e4 {[%emt 00:00:05]} d6 2. d4 {[%clk 00:02:59]} Nf6 {[%clk 00:03:05]} 3. Nc3
{[%clk 00:03:00]} e5 {[%clk 00:03:07]} 4. d5 {[%clk 00:02:50]} {[%emt
00:00:13]} Be7 {[%clk 00:03:03]} {[%emt 00:00:06]} 5. Be3 {[%clk 00:02:49]}
{[%emt 00:00:04]} c6 {[%clk 00:03:03]} {[%emt 00:00:02]} 6. Nf3 {[%clk
00:02:21]} {[%emt 00:00:29]} Ng4 {[%clk 00:03:03]} {[%emt 00:00:02]} 7. Qd2
{[%clk 00:02:22]} {[%emt 00:00:02]} Nxe3 {[%clk 00:03:04]} {[%emt 00:00:02]} 8.
Qxe3 {[%clk 00:02:22]} {[%emt 00:00:01]} Qb6 {[%clk 00:02:51]} {[%emt
00:00:16]} 9. Qxb6 {[%clk 00:02:14]} {[%emt 00:00:10]} axb6 {[%clk 00:02:52]}
10. h4 {[%clk 00:02:03]} {[%emt 00:00:12]} b5 {[%clk 00:02:49]} {[%emt
00:00:06]} 11. O-O-O {[%clk 00:01:52]} {[%emt 00:00:13]} b4 {[%clk 00:02:47]}
{[%emt 00:00:04]} 12. Ne2 {[%clk 00:01:44]} {[%emt 00:00:10]} Rxa2 {[%clk
00:02:48]} {[%emt 00:00:01]} 13. Ng3 {[%clk 00:01:43]} {[%emt 00:00:03]} Ra1+
{[%clk 00:02:39]} {[%emt 00:00:11]} 14. Kd2 {[%clk 00:01:44]} Rxd1+ {[%clk
00:02:39]} {[%emt 00:00:02]} 15. Kxd1 {[%clk 00:01:45]} {[%emt 00:00:01]} Bg4
{[%clk 00:02:33]} {[%emt 00:00:08]} 16. Be2 {[%clk 00:01:45]} {[%emt 00:00:02]}
Bxf3 {[%clk 00:02:29]} {[%emt 00:00:05]} 17. Bxf3 {[%clk 00:01:47]} Nd7 {[%clk
00:02:29]} {[%emt 00:00:03]} 18. Nf5 {[%clk 00:01:48]} g6 {[%clk 00:02:25]}
{[%emt 00:00:06]} 19. Ne3 {[%clk 00:01:39]} {[%emt 00:00:11]} O-O {[%clk
00:02:07]} {[%emt 00:00:20]} 20. Kd2 {[%clk 00:01:31]} {[%emt 00:00:10]} Ra8
{[%clk 00:02:08]} {[%emt 00:00:02]} 21. b3 {[%clk 00:01:28]} {[%emt 00:00:05]}
Nb6 {[%clk 00:01:59]} {[%emt 00:00:10]} 22. h5 {[%emt 00:00:08]} Bg5 {[%clk
00:01:56]} {[%emt 00:00:03]} 23. dxc6 {[%clk 00:01:24]} {[%emt 00:00:02]} bxc6
{[%clk 00:01:57]} {[%emt 00:00:01]} 24. Kd3 {[%clk 00:01:25]} Bxe3 {[%clk
00:01:52]} {[%emt 00:00:07]} 25. Kxe3 {[%clk 00:01:26]} Kf8 {[%clk 00:01:46]}
{[%emt 00:00:09]} 26. hxg6 {[%clk 00:01:26]} {[%emt 00:00:02]} hxg6 {[%clk
00:01:46]} {[%emt 00:00:02]} 27. Rh8+ {[%emt 00:00:18]} Ke7 28. Rxa8 {[%clk
00:01:11]} {[%emt 00:00:01]} Nxa8 {[%clk 00:01:49]} 29. Kd3 {[%clk 00:01:12]}
Nb6 {[%clk 00:01:48]} {[%emt 00:00:03]} 30. Bg4 {[%clk 00:01:11]} {[%emt
00:00:02]} d5 {[%clk 00:01:43]} {[%emt 00:00:07]} 31. f3 {[%clk 00:01:12]}
{[%emt 00:00:01]} Kd6 {[%clk 00:01:41]} {[%emt 00:00:04]} 32. g3 {[%clk
00:01:07]} {[%emt 00:00:08]} Nd7 {[%clk 00:01:40]} {[%emt 00:00:02]} 33. exd5
{[%clk 00:00:57]} {[%emt 00:00:13]} cxd5 {[%clk 00:01:41]} {[%emt 00:00:01]} 34.
c4 {[%clk 00:00:56]} {[%emt 00:00:02]} f5 {[%clk 00:01:15]} {[%emt 00:00:28]}
35. Bh3 {[%clk 00:00:54]} {[%emt 00:00:03]} Kc5 {[%clk 00:01:10]} {[%emt
00:00:07]} 36. cxd5 {[%clk 00:00:53]} {[%emt 00:00:03]} Kxd5 {[%clk 00:01:12]}
37. g4 {[%clk 00:00:54]} {[%emt 00:00:02]} f4 {[%clk 00:00:49]} {[%emt
00:00:25]} 38. g5 {[%clk 00:00:50]} {[%emt 00:00:06]} Nc5+ {[%clk 00:00:45]}
{[%emt 00:00:06]} 39. Kc2 {[%clk 00:00:52]} Ne6 {[%clk 00:00:45]} {[%emt
00:00:02]} 40. Bf1 {[%clk 00:00:18]} {[%emt 00:00:36]} Nxg5 {[%clk 00:00:46]}
{[%emt 00:00:01]} 41. Bd3 {[%clk 00:00:19]} Nxf3 {[%clk 00:00:44]} {[%emt
00:00:04]} 42. Bxg6 {[%clk 00:00:20]} Nd4+ {[%clk 00:00:45]} {[%emt 00:00:02]}
43. Kb2 {[%clk 00:00:21]} f3 {[%clk 00:00:41]} {[%emt 00:00:05]} 44. Bd3 {[%clk
00:00:21]} {[%emt 00:00:02]} Ne2 {[%clk 00:00:35]} {[%emt 00:00:09]} 45. Kc2
{[%clk 00:00:21]} Kd4 {[%clk 00:00:36]} {[%emt 00:00:02]} 46. Kc3+ {[%emt
00:00:16]} 0-1

[Event "Paul Kerese Mälestusfestival 2022 Välkturniir"]
[Site "Paul Kerese Mälestusfestival 2022 Kiirturniir"]
[Date "????.??.??"]
[Round "9.6"]
[White "Kraini, Juri"]
[Black "Krilovs, Nikolajs"]
[Result "0-1"]
[TimeControl "3 min + 2 sek iga käigu eest"]
[WhiteElo "1692"]
[BlackElo "1971"]

1. e4 {[%clk 00:03:03]} {[%emt 00:00:02]} c5 {[%clk 00:03:03]} 2. Nf3 {[%clk
00:03:03]} {[%emt 00:00:01]} e6 {[%clk 00:03:04]} {[%emt 00:00:01]} 3. c3
{[%clk 00:03:04]} d5 {[%clk 00:03:04]} {[%emt 00:00:01]} 4. e5 {[%clk
00:02:57]} {[%emt 00:00:10]} Nc6 {[%clk 00:03:02]} {[%emt 00:00:03]} 5. d4
{[%clk 00:02:58]} {[%emt 00:00:01]} cxd4 {[%clk 00:03:03]} {[%emt 00:00:02]} 6.
cxd4 {[%clk 00:02:59]} {[%emt 00:00:01]} Qb6 {[%clk 00:02:56]} {[%emt
00:00:09]} 7. Nc3 {[%clk 00:02:59]} {[%emt 00:00:02]} Bb4 {[%clk 00:02:54]}
{[%emt 00:00:04]} 8. Be3 {[%clk 00:02:57]} {[%emt 00:00:04]} Nge7 {[%clk
00:02:51]} {[%emt 00:00:05]} 9. Bd3 {[%clk 00:02:53]} {[%emt 00:00:06]} g6
{[%clk 00:02:32]} {[%emt 00:00:22]} 10. g4 {[%clk 00:02:49]} {[%emt 00:00:07]}
h5 {[%clk 00:02:30]} {[%emt 00:00:04]} 11. gxh5 {[%clk 00:02:40]} {[%emt
00:00:10]} Rxh5 {[%clk 00:02:29]} {[%emt 00:00:03]} 12. Qd2 {[%clk 00:02:17]}
{[%emt 00:00:26]} Bd7 {[%clk 00:02:19]} {[%emt 00:00:12]} 13. O-O-O {[%clk
00:02:13]} {[%emt 00:00:05]} Rc8 {[%clk 00:02:12]} {[%emt 00:00:09]} 14. Kb1
{[%clk 00:02:14]} {[%emt 00:00:02]} Bxc3 {[%clk 00:02:09]} {[%emt 00:00:05]} 15.
Qxc3 {[%clk 00:02:14]} {[%emt 00:00:02]} Nxe5 {[%clk 00:02:02]} {[%emt
00:00:10]} 16. Qxc8+ {[%clk 00:01:53]} {[%emt 00:00:23]} Nxc8 {[%clk 00:02:02]}
{[%emt 00:00:02]} 17. Nxe5 {[%clk 00:01:52]} {[%emt 00:00:03]} Nd6 {[%clk
00:01:54]} {[%emt 00:00:10]} 18. Be2 {[%clk 00:01:34]} {[%emt 00:00:20]} Rh4
{[%clk 00:01:34]} {[%emt 00:00:22]} 19. Nf3 {[%clk 00:01:27]} {[%emt 00:00:08]}
Rh8 {[%clk 00:01:28]} {[%emt 00:00:08]} 20. Rc1 {[%clk 00:01:16]} {[%emt
00:00:14]} Bb5 {[%clk 00:01:14]} {[%emt 00:00:16]} 21. Bxb5+ {[%clk 00:01:09]}
{[%emt 00:00:09]} Qxb5 {[%clk 00:01:14]} {[%emt 00:00:01]} 22. Ne5 {[%clk
00:01:10]} {[%emt 00:00:01]} Nc4 {[%clk 00:01:08]} {[%emt 00:00:09]} 23. Nxc4
{[%clk 00:01:05]} {[%emt 00:00:06]} dxc4 {[%clk 00:01:08]} {[%emt 00:00:01]} 24.
Rc3 {[%clk 00:01:02]} {[%emt 00:00:05]} Qf5+ {[%clk 00:01:09]} {[%emt
00:00:02]} 25. Ka1 {[%clk 00:01:00]} {[%emt 00:00:05]} b5 {[%clk 00:01:09]}
{[%emt 00:00:02]} 26. a3 {[%clk 00:00:57]} {[%emt 00:00:05]} Qd5 {[%clk
00:01:08]} {[%emt 00:00:02]} 27. Rhc1 {[%clk 00:00:55]} {[%emt 00:00:05]} Rxh2
{[%clk 00:01:07]} {[%emt 00:00:03]} 28. a4 {[%clk 00:00:56]} a6 {[%clk
00:01:08]} {[%emt 00:00:01]} 29. axb5 {[%clk 00:00:57]} {[%emt 00:00:01]} axb5
{[%clk 00:01:08]} {[%emt 00:00:01]} 30. Ra3 {[%clk 00:00:59]} b4 {[%clk
00:00:47]} {[%emt 00:00:23]} 31. Ra7 {[%clk 00:00:55]} {[%emt 00:00:06]} b3
{[%clk 00:00:47]} {[%emt 00:00:01]} 32. Ra4 {[%clk 00:00:53]} {[%emt 00:00:04]}
Rh1 {[%clk 00:00:45]} {[%emt 00:00:04]} 33. Raxc4 {[%clk 00:00:40]} {[%emt
00:00:15]} Qa5+ {[%clk 00:00:42]} {[%emt 00:00:05]} 0-1

[Event "Paul Kerese Mälestusfestival 2022 Välkturniir"]
[Site "Paul Kerese Mälestusfestival 2022 Kiirturniir"]
[Date "????.??.??"]
[Round "9.7"]
[White "Protassov, Vlad"]
[Black "Paikens, Reinis"]
[Result "1-0"]
[TimeControl "3 min + 2 sek iga käigu eest"]
[WhiteElo "1816"]
[BlackElo "1678"]

1. d4 {[%clk 00:03:03]} {[%emt 00:00:02]} d5 {[%clk 00:03:04]} 2. c4 {[%clk
00:03:04]} {[%emt 00:00:01]} c6 {[%clk 00:03:05]} {[%emt 00:00:01]} 3. Nc3
{[%clk 00:03:05]} {[%emt 00:00:01]} Nf6 {[%clk 00:03:05]} {[%emt 00:00:01]} 4.
Nf3 {[%clk 00:03:06]} {[%emt 00:00:01]} g6 {[%clk 00:03:03]} {[%emt 00:00:04]}
5. g3 {[%clk 00:02:58]} {[%emt 00:00:09]} Bg7 {[%clk 00:03:05]} {[%emt
00:00:01]} 6. Bg2 {[%clk 00:02:59]} O-O {[%clk 00:03:05]} {[%emt 00:00:02]} 7.
O-O {[%clk 00:03:00]} {[%emt 00:00:02]} dxc4 {[%clk 00:02:48]} {[%emt
00:00:19]} 8. e4 {[%clk 00:03:01]} Nfd7 {[%clk 00:02:44]} {[%emt 00:00:07]} 9.
Qe2 {[%clk 00:02:53]} {[%emt 00:00:10]} Nb6 {[%clk 00:02:41]} {[%emt 00:00:04]}
10. a4 {[%clk 00:02:51]} {[%emt 00:00:04]} Bg4 {[%clk 00:01:58]} {[%emt
00:00:45]} 11. a5 {[%clk 00:02:46]} {[%emt 00:00:07]} Nc8 {[%clk 00:01:59]}
{[%emt 00:00:02]} 12. Rd1 {[%clk 00:02:34]} {[%emt 00:00:14]} Bxf3 {[%clk
00:01:49]} {[%emt 00:00:12]} 13. Bxf3 {[%clk 00:02:28]} {[%emt 00:00:07]} Bxd4
{[%clk 00:01:46]} {[%emt 00:00:05]} 14. Bh6 {[%clk 00:02:23]} {[%emt 00:00:07]}
Re8 {[%clk 00:01:43]} {[%emt 00:00:05]} 15. e5 {[%clk 00:02:14]} {[%emt
00:00:10]} Qd7 {[%clk 00:00:46]} {[%emt 00:00:59]} 16. Bg4 {[%clk 00:02:01]}
{[%emt 00:00:15]} e6 {[%emt 00:00:08]} 17. Ne4 {[%clk 00:01:57]} {[%emt
00:00:06]} Bxe5 {[%emt 00:00:30]} 18. Rxd7 {[%clk 00:01:53]} {[%emt 00:00:06]}
Nxd7 {[%clk 00:00:15]} 19. Nc5 {[%clk 00:01:20]} {[%emt 00:00:34]} Nf6 {[%clk
00:00:03]} {[%emt 00:00:14]} 20. Qxe5 {[%clk 00:01:19]} {[%emt 00:00:03]} Nxg4
{[%clk 00:00:03]} {[%emt 00:00:02]} 21. Qg7# {[%clk 00:01:20]} 1-0

[Event "Paul Kerese Mälestusfestival 2022 Välkturniir"]
[Site "Paul Kerese Mälestusfestival 2022 Kiirturniir"]
[Date "????.??.??"]
[Round "9.8"]
[White "Petrovskis, Olegs"]
[Black "Teelem, Lauri"]
[Result "0-1"]
[TimeControl "3 min + 2 sek iga käigu eest"]
[WhiteElo "1984"]
[BlackElo "2012"]

1. d4 {[%clk 00:03:03]} {[%emt 00:00:02]} Nf6 {[%clk 00:03:03]} 2. Nf3 {[%clk
00:03:04]} g6 {[%clk 00:03:04]} {[%emt 00:00:01]} 3. c4 {[%clk 00:03:06]} Bg7
{[%emt 00:00:03]} 4. Nc3 O-O {[%clk 00:02:55]} {[%emt 00:00:07]} 5. e4 {[%clk
00:03:07]} {[%emt 00:00:01]} d6 {[%clk 00:02:56]} {[%emt 00:00:01]} 6. Be2
{[%clk 00:03:08]} {[%emt 00:00:01]} e5 {[%clk 00:02:55]} {[%emt 00:00:03]} 7.
dxe5 {[%clk 00:03:05]} {[%emt 00:00:04]} dxe5 {[%clk 00:02:56]} {[%emt
00:00:01]} 8. Qxd8 {[%clk 00:03:06]} {[%emt 00:00:01]} Rxd8 {[%clk 00:02:57]} 9.
Bg5 {[%clk 00:03:07]} c6 {[%clk 00:02:52]} {[%emt 00:00:08]} 10. Nxe5 {[%clk
00:02:50]} {[%emt 00:00:19]} Re8 {[%clk 00:02:52]} 11. f4 {[%clk 00:02:34]}
{[%emt 00:00:18]} Na6 {[%clk 00:02:53]} {[%emt 00:00:02]} 12. Bf3 {[%clk
00:02:19]} {[%emt 00:00:17]} h6 {[%clk 00:02:51]} {[%emt 00:00:04]} 13. Bh4
{[%clk 00:02:05]} {[%emt 00:00:16]} g5 {[%clk 00:02:36]} {[%emt 00:00:18]} 14.
Bg3 {[%clk 00:01:44]} {[%emt 00:00:23]} g4 {[%clk 00:02:19]} {[%emt 00:00:19]}
15. Be2 {[%clk 00:01:21]} {[%emt 00:00:25]} Nc5 {[%clk 00:02:19]} {[%emt
00:00:01]} 16. O-O {[%clk 00:00:56]} {[%emt 00:00:28]} Nfxe4 {[%clk 00:02:14]}
{[%emt 00:00:07]} 17. Nxe4 {[%clk 00:00:44]} {[%emt 00:00:13]} Nxe4 {[%clk
00:02:15]} {[%emt 00:00:01]} 18. Bh4 {[%clk 00:00:44]} {[%emt 00:00:02]} Bxe5
{[%clk 00:01:58]} {[%emt 00:00:19]} 19. fxe5 {[%clk 00:00:45]} Rxe5 {[%clk
00:01:54]} {[%emt 00:00:06]} 20. Bd3 {[%clk 00:00:42]} {[%emt 00:00:06]} Nc5
{[%clk 00:01:47]} {[%emt 00:00:10]} 21. Bc2 {[%clk 00:00:29]} {[%emt 00:00:14]}
Re2 {[%clk 00:01:35]} {[%emt 00:00:14]} 22. Rac1 {[%clk 00:00:26]} {[%emt
00:00:06]} Be6 {[%clk 00:01:27]} {[%emt 00:00:10]} 23. b4 {[%clk 00:00:27]} Nd7
{[%clk 00:01:16]} {[%emt 00:00:13]} 24. Bd3 {[%clk 00:00:24]} {[%emt 00:00:06]}
Rxa2 {[%clk 00:01:14]} {[%emt 00:00:04]} 25. Bg3 {[%clk 00:00:18]} {[%emt
00:00:08]} Ra4 {[%clk 00:01:08]} {[%emt 00:00:06]} 26. Rb1 {[%clk 00:00:19]}
{[%emt 00:00:03]} Nb6 {[%clk 00:01:03]} {[%emt 00:00:06]} 27. Rf4 {[%clk
00:00:15]} {[%emt 00:00:05]} Rd8 {[%clk 00:01:02]} {[%emt 00:00:04]} 28. Be2
{[%clk 00:00:17]} h5 {[%clk 00:01:01]} {[%emt 00:00:04]} 29. h3 {[%clk
00:00:17]} {[%emt 00:00:02]} Ra2 {[%clk 00:01:01]} {[%emt 00:00:01]} 30. Re1
{[%clk 00:00:11]} {[%emt 00:00:08]} Rdd2 {[%clk 00:00:57]} {[%emt 00:00:06]} 31.
Bf1 {[%clk 00:00:07]} {[%emt 00:00:06]} Bxc4 {[%clk 00:00:52]} {[%emt
00:00:07]} 32. Re5 {[%clk 00:00:05]} {[%emt 00:00:04]} Bxf1 {[%clk 00:00:46]}
{[%emt 00:00:09]} 0-1

[Event "Paul Kerese Mälestusfestival 2022 Välkturniir"]
[Site "Paul Kerese Mälestusfestival 2022 Kiirturniir"]
[Date "????.??.??"]
[Round "10.1"]
[White "Golubovskis, Maksims"]
[Black "Agrest, Evgenij"]
[Result "1-0"]
[TimeControl "3 min + 2 sek iga käigu eest"]
[BlackTitle "GM"]
[WhiteElo "2163"]
[BlackElo "2574"]

1. Nf3 {[%clk 00:03:02]} d5 {[%clk 00:03:02]} {[%emt 00:00:02]} 2. g3 {[%clk
00:03:03]} {[%emt 00:00:01]} Nd7 {[%clk 00:03:03]} {[%emt 00:00:01]} 3. d4
{[%clk 00:03:04]} {[%emt 00:00:02]} Nb6 {[%clk 00:03:03]} {[%emt 00:00:02]} 4.
Bg2 {[%clk 00:03:05]} Bf5 {[%clk 00:03:03]} {[%emt 00:00:02]} 5. O-O {[%clk
00:03:04]} {[%emt 00:00:02]} e6 {[%clk 00:03:03]} {[%emt 00:00:03]} 6. b3
{[%clk 00:03:05]} {[%emt 00:00:01]} h6 {[%emt 00:00:03]} 7. Bb2 c6 {[%clk
00:03:01]} {[%emt 00:00:03]} 8. Nbd2 {[%clk 00:03:08]} {[%emt 00:00:02]} Nf6
{[%clk 00:03:01]} {[%emt 00:00:01]} 9. c4 {[%clk 00:03:08]} {[%emt 00:00:02]}
Be7 {[%clk 00:03:00]} {[%emt 00:00:02]} 10. e3 {[%clk 00:02:54]} {[%emt
00:00:16]} O-O {[%clk 00:02:56]} {[%emt 00:00:06]} 11. Qe2 {[%clk 00:02:54]}
{[%emt 00:00:03]} a5 {[%clk 00:02:45]} {[%emt 00:00:13]} 12. c5 {[%clk
00:02:51]} {[%emt 00:00:05]} Nbd7 {[%clk 00:02:45]} {[%emt 00:00:02]} 13. a3
{[%clk 00:02:53]} {[%emt 00:00:01]} Ne4 {[%clk 00:02:35]} {[%emt 00:00:11]} 14.
Ne1 {[%clk 00:02:40]} {[%emt 00:00:15]} Nxd2 {[%clk 00:02:29]} {[%emt
00:00:08]} 15. Qxd2 {[%clk 00:02:41]} {[%emt 00:00:01]} e5 {[%clk 00:02:30]} 16.
f4 {[%clk 00:02:28]} {[%emt 00:00:16]} exd4 {[%clk 00:02:24]} {[%emt 00:00:07]}
17. exd4 {[%clk 00:02:30]} {[%emt 00:00:01]} Bf6 {[%emt 00:00:08]} 18. Nf3
{[%clk 00:02:23]} Be4 {[%clk 00:02:22]} {[%emt 00:00:05]} 19. Ne5 {[%clk
00:02:21]} {[%emt 00:00:04]} Bxg2 {[%clk 00:02:21]} {[%emt 00:00:03]} 20. Kxg2
{[%clk 00:02:21]} {[%emt 00:00:02]} Bxe5 {[%clk 00:02:18]} {[%emt 00:00:05]} 21.
fxe5 {[%clk 00:02:16]} {[%emt 00:00:08]} Qg5 {[%clk 00:02:09]} {[%emt
00:00:11]} 22. Rf4 {[%clk 00:01:41]} {[%emt 00:00:37]} b6 {[%clk 00:01:53]}
{[%emt 00:00:18]} 23. cxb6 {[%clk 00:01:34]} {[%emt 00:00:09]} Nxb6 {[%clk
00:01:53]} {[%emt 00:00:02]} 24. a4 {[%clk 00:01:36]} {[%emt 00:00:01]} Nc8
{[%clk 00:01:19]} {[%emt 00:00:35]} 25. Ba3 {[%clk 00:01:30]} {[%emt 00:00:09]}
Re8 {[%clk 00:01:20]} {[%emt 00:00:01]} 26. Raf1 {[%clk 00:01:29]} {[%emt
00:00:04]} Ra7 {[%clk 00:01:16]} {[%emt 00:00:06]} 27. Qc3 {[%clk 00:01:25]}
{[%emt 00:00:06]} Qg6 {[%clk 00:01:16]} {[%emt 00:00:02]} 28. h3 {[%clk
00:01:16]} {[%emt 00:00:11]} h5 {[%clk 00:01:13]} {[%emt 00:00:04]} 29. Bc5
{[%clk 00:01:11]} {[%emt 00:00:07]} Rb7 {[%clk 00:01:14]} {[%emt 00:00:02]} 30.
R1f3 {[%clk 00:01:04]} {[%emt 00:00:09]} Ne7 {[%clk 00:00:40]} {[%emt
00:00:35]} 31. Rxf7 {[%clk 00:00:52]} {[%emt 00:00:14]} Qxf7 {[%clk 00:00:37]}
{[%emt 00:00:05]} 32. Rxf7 {[%clk 00:00:53]} {[%emt 00:00:02]} Kxf7 {[%clk
00:00:37]} {[%emt 00:00:02]} 33. Bxe7 {[%clk 00:00:45]} {[%emt 00:00:10]} Kxe7
{[%clk 00:00:22]} {[%emt 00:00:17]} 34. Qxc6 {[%clk 00:00:45]} {[%emt
00:00:02]} Reb8 {[%clk 00:00:23]} {[%emt 00:00:01]} 35. Qd6+ {[%clk 00:00:39]}
{[%emt 00:00:07]} Ke8 {[%clk 00:00:21]} {[%emt 00:00:04]} 36. e6 {[%clk
00:00:32]} {[%emt 00:00:10]} g6 {[%clk 00:00:21]} {[%emt 00:00:02]} 37. Qxd5
{[%clk 00:00:32]} {[%emt 00:00:02]} Rc7 {[%clk 00:00:17]} {[%emt 00:00:05]} 38.
Kf3 {[%clk 00:00:22]} {[%emt 00:00:13]} Rd8 {[%clk 00:00:16]} {[%emt 00:00:04]}
39. Qb5+ {[%clk 00:00:21]} {[%emt 00:00:02]} Ke7 {[%clk 00:00:15]} {[%emt
00:00:03]} 40. Qg5+ {[%clk 00:00:20]} {[%emt 00:00:03]} Ke8 {[%clk 00:00:15]}
{[%emt 00:00:02]} 41. Qxg6+ {[%clk 00:00:21]} {[%emt 00:00:01]} Ke7 {[%clk
00:00:17]} 42. Qg5+ {[%clk 00:00:22]} {[%emt 00:00:01]} Ke8 {[%clk 00:00:18]}
43. Qxh5+ {[%clk 00:00:17]} {[%emt 00:00:07]} Ke7 {[%clk 00:00:19]} 44. Qg5+
{[%clk 00:00:17]} {[%emt 00:00:03]} Ke8 {[%clk 00:00:21]} 45. d5 {[%clk
00:00:19]} Rc3+ {[%clk 00:00:21]} {[%emt 00:00:01]} 46. Ke4 {[%clk 00:00:19]}
{[%emt 00:00:01]} Rxb3 {[%clk 00:00:22]} {[%emt 00:00:01]} 47. Qg6+ {[%clk
00:00:15]} {[%emt 00:00:06]} Ke7 {[%clk 00:00:23]} {[%emt 00:00:01]} 48. Qf7+
{[%clk 00:00:15]} {[%emt 00:00:02]} Kd6 {[%clk 00:00:24]} 49. e7 {[%clk
00:00:09]} {[%emt 00:00:08]} Rb4+ {[%clk 00:00:18]} {[%emt 00:00:08]} 50. Kf5
{[%clk 00:00:11]} Rdb8 {[%clk 00:00:16]} {[%emt 00:00:04]} 51. Qe6+ {[%clk
00:00:11]} {[%emt 00:00:01]} Kc5 {[%clk 00:00:17]} 52. e8=Q {[%clk 00:00:10]}
{[%emt 00:00:03]} Rxe8 {[%clk 00:00:16]} {[%emt 00:00:04]} 53. Qxe8 {[%clk
00:00:11]} {[%emt 00:00:01]} Rb1 {[%clk 00:00:15]} {[%emt 00:00:03]} 54. Qc6+
{[%clk 00:00:11]} {[%emt 00:00:02]} Kd4 {[%clk 00:00:16]} 55. d6 {[%clk
00:00:12]} {[%emt 00:00:02]} Rf1+ {[%clk 00:00:17]} 56. Kg4 {[%clk 00:00:13]}
{[%emt 00:00:01]} Rf8 {[%clk 00:00:18]} {[%emt 00:00:01]} 57. d7 {[%clk
00:00:13]} {[%emt 00:00:02]} Rg8 {[%clk 00:00:19]} {[%emt 00:00:01]} 58. Kf5
{[%clk 00:00:14]} Rf8+ {[%clk 00:00:19]} {[%emt 00:00:02]} 59. Qf6+ {[%clk
00:00:15]} {[%emt 00:00:01]} 1-0